bitfinex/quotes_ETHUSD_20250810
["timestamp","ask_amount","ask_price","bid_price","bid_amount"]
[1754793909725,0.1176,4254.6,4254.5,0.24690999]
[1754793909912,0.1176,4254.6,4254.5,2.57086697]
[1754793910115,0.1176,4254.6,4254.5,0.19690999]
[1754793911102,0.1176,4254.6,4254.3,0.1186]
[1754793911908,0.1176,4254.6,4254.3,0.001]
[1754793913127,0.1176,4254.6,4254.3,2.35156274]
[1754793913517,0.1176,4254.6,4254.3,2.30156274]
[1754793913726,0.1176,4254.6,4254.1,3.812]
[1754793913918,0.1176,4254.6,4254.2,0.6812]
[1754793914119,0.1176,4254.6,4254.4,2.35048784]
[1754793914299,0.1176,4254.6,4254.5,2.56997534]
[1754793915406,0.1176,4254.6,4254.5,0.21952288]
[1754793916003,0.5659,4254.6,4254.5,0.21952288]
[1754793916410,3.40329721,4254.6,4254.5,0.21952288]
[1754793916617,1.62846121,4254.6,4254.5,0.21952288]
[1754793916815,0.1176,4254.6,4254.5,0.21952288]
[1754793917119,0.1176,4254.6,4254.5,0.22052288]
[1754793917727,0.5521,4254.6,4254.5,0.22052288]
[1754793918024,1.0543,4254.6,4254.5,0.22052288]
[1754793918957,3.40469721,4254.6,4254.5,0.22052288]
[1754793919157,1.0543,4254.6,4254.5,0.22052288]
[1754793919361,0.1176,4254.6,4254.5,0.2208055]
[1754793919670,0.6198,4254.6,4254.5,0.2208055]
[1754793919871,1.0543,4254.6,4254.5,0.2208055]
[1754793922077,0.2352,4254.6,4254.5,2.57125796]
[1754793922287,0.002,4254.7,4254.6,2.35039721]
[1754793922442,0.002,4254.7,4254.6,2.59640271]
[1754793922769,0.002,4254.7,4254.6,6.37420271]
[1754793925772,3.0,4254.5,4254.1,0.001]
[1754793926084,3.0,4254.3,4254.1,0.001]
[1754793926243,1.38557,4254.4,4254.1,0.001]
[1754793926551,0.4345,4254.2,4254.1,0.001]
[1754793926738,0.5521,4254.2,4254.1,0.001]
[1754793926940,3.40491821,4254.2,4254.1,0.001]
[1754793927759,1.0543,4254.2,4254.1,0.001]
[1754793929574,0.5521,4254.2,4254.1,0.001]
[1754793930071,1.0543,4254.2,4254.1,0.001]
[1754793931359,3.40491821,4254.2,4254.1,0.001]
[1754793931579,3.75482183,4254.2,4254.1,0.001]
[1754793932660,7.58420455,4254.2,4254.1,0.001]
[1754793932843,8.10482183,4254.2,4254.1,0.001]
[1754793933145,3.75482183,4254.2,4254.1,0.001]
[1754793936183,0.5521,4254.2,4254.1,0.001]
[1754793937770,0.5521,4254.2,4254.1,0.22045917]
[1754793937939,3.40491821,4254.2,4254.1,0.22045918]
[1754793939381,1.0543,4254.2,4254.1,0.22045918]
[1754793940158,3.40491821,4254.2,4254.1,0.22045918]
[1754793940380,1.0543,4254.2,4254.1,0.22045918]
[1754793941784,0.1176,4254.2,4254.1,0.22045918]
[1754793942153,0.002,4254.6,4254.1,0.69217731]
[1754793942354,0.002,4254.6,4254.2,0.21945918]
[1754793942549,0.002,4254.6,4254.1,2.35167206]
[1754793942875,0.1176,4254.5,4254.1,0.001]
[1754793943381,0.1176,4254.5,4254.4,2.3505077]
[1754793943581,0.1176,4254.5,4254.2,2.35061633]
[1754793943882,0.1176,4254.5,4254.1,0.001]
[1754793944065,0.1176,4254.5,4254.1,2.35167035]
[1754793944250,0.1176,4254.5,4254.1,2.83377915]
[1754793944866,0.1176,4254.5,4254.2,2.35061561]
[1754793946176,0.1176,4254.5,4254.1,2.83377429]
[1754793946383,0.1176,4254.5,4254.1,0.4831088]
[1754793946770,0.1176,4254.5,4254.1,0.001]
[1754793947178,0.1176,4254.5,4254.2,2.35060618]
[1754793947364,0.1176,4254.5,4254.1,0.001]
[1754793947764,0.1176,4254.5,4254.2,2.35060982]
[1754793948590,0.1176,4254.5,4254.1,0.001]
[1754793948763,0.002,4254.6,4254.4,2.3505077]
[1754793948975,0.002,4254.6,4254.3,2.35055605]
[1754793949304,0.002,4254.6,4254.3,0.47032598]
[1754793949811,0.002,4254.6,4254.3,2.82088706]
[1754793950111,0.002,4254.6,4254.4,2.35045429]
[1754793950293,0.002,4254.6,4254.3,2.820887]
[1754793950477,0.002,4254.6,4254.3,2.82088757]
[1754793950682,0.002,4254.6,4254.3,0.47032598]
[1754793951212,0.002,4254.6,4254.3,2.82088414]
[1754793951796,0.002,4254.6,4254.3,0.47032598]
[1754793952116,0.002,4254.6,4254.4,2.35047605]
[1754793952292,0.002,4254.6,4254.3,0.47032598]
[1754793952480,0.002,4254.6,4254.2,2.3506104]
[1754793953180,0.002,4254.6,4254.1,0.001]
[1754793953376,0.002,4254.6,4254.4,2.35049233]
[1754793953591,0.002,4254.6,4254.2,2.35056311]
[1754793954712,0.9648,4254.5,4254.1,0.001]
[1754793955010,0.9648,4254.4,4254.1,0.001]
[1754793955208,3.31531324,4254.4,4254.1,0.001]
[1754793955406,0.9648,4254.3,4254.1,0.001]
[1754793955604,3.31536479,4254.3,4254.1,0.001]
[1754793955807,0.4481,4254.2,4254.1,0.001]
[1754793956012,0.002,4254.6,4254.1,0.001]
[1754793956510,0.002,4254.6,4254.3,2.35053189]
[1754793956711,0.002,4254.6,4254.3,3.39756531]
[1754793956912,0.002,4254.6,4254.4,2.35050442]
[1754793957318,0.002,4254.6,4254.5,2.35045246]
[1754793957514,0.002,4254.6,4254.3,1.04703342]
[1754793957918,0.002,4254.6,4254.1,0.001]
[1754793958093,0.002,4254.6,4254.2,2.35061821]
[1754793959119,0.002,4254.6,4254.3,2.35051257]
[1754793959316,0.002,4254.6,4254.1,0.001]
[1754793959492,0.002,4254.6,4254.3,3.791]
[1754793959691,0.002,4254.6,4254.3,4.98208023]
[1754793959922,0.002,4254.6,4254.5,2.35045246]
[1754793960527,0.002,4254.6,4254.3,4.98208023]
[1754793960709,0.002,4254.6,4254.3,7.3325898]
[1754793960912,0.002,4254.6,4254.5,2.35045246]
[1754793961093,0.002,4254.6,4254.5,3.28698943]
[1754793961625,0.002,4254.6,4254.5,3.50148943]
[1754793961807,0.002,4254.6,4254.5,3.52499395]
[1754793962217,0.002,4254.6,4254.5,3.28698943]
[1754793962522,0.002,4254.6,4254.5,3.52768943]
[1754793963429,0.002,4254.6,4254.5,3.50148943]
[1754793963616,0.002,4254.6,4254.5,3.28698943]
[1754793964543,0.002,4254.6,4254.5,6.28698943]
[1754793964754,0.002,4254.6,4254.5,6.40458943]
[1754793965247,0.002,4254.6,4254.5,6.62688943]
[1754793966854,0.002,4254.6,4254.5,6.60068943]
[1754793967350,0.002,4254.6,4254.5,6.62688943]
[1754793967654,0.002,4255.1,4254.8,2.35025885]
[1754793967818,0.002,4255.1,4255.0,13.46797855]
[1754793968020,0.002,4255.1,4255.0,13.58557855]
[1754793968255,0.002,4255.1,4255.0,13.80787855]
[1754793968918,0.002,4255.1,4255.0,13.58557855]
[1754793969254,1e-08,4255.2,4255.1,5.90012103]
[1754793969424,1e-08,4255.2,4255.1,6.12242103]
[1754793969751,1e-08,4255.2,4255.1,5.90012103]
[1754793970125,1e-08,4255.2,4255.1,6.09622103]
[1754793971362,1e-08,4255.6,4255.5,2.34990012]
[1754793971567,1e-08,4255.6,4255.5,18.06219142]
[1754793971773,1e-08,4255.9,4255.8,2.34973448]
[1754793971969,1e-08,4255.9,4255.8,9.27583182]
[1754793972170,1e-08,4255.9,4255.8,9.25233448]
[1754793972470,1e-08,4255.9,4255.8,10.2084247]
[1754793972647,1e-08,4255.9,4255.8,10.4307247]
[1754793973047,1e-08,4255.9,4255.8,10.4045247]
[1754793973772,1e-08,4255.9,4255.8,10.2084247]
[1754793973981,0.96480001,4255.9,4255.8,10.2074247]
[1754793974262,0.96480001,4255.9,4255.8,6.13373448]
[1754793975286,0.96480001,4255.9,4255.8,3.784]
[1754793975441,0.96480001,4255.9,4255.8,6.13373448]
[1754793976162,0.96480001,4255.9,4255.8,3.784]
[1754793976347,0.96480001,4255.9,4255.8,6.13373448]
[1754793977061,0.96480001,4255.9,4255.8,3.784]
[1754793977266,0.96480001,4255.9,4255.8,6.13373448]
[1754793978273,0.91480001,4255.9,4255.8,6.13373448]
[1754793978784,0.002,4256.0,4255.8,6.13373448]
[1754793978785,0.002,4256.0,4255.9,2.34967926]
[1754793979180,0.002,4256.0,4255.9,2.37317605]
[1754793979402,0.002,4256.0,4255.9,2.49077605]
[1754793979792,0.002,4256.0,4255.9,10.60857834]
[1754793980123,0.002,4256.0,4255.9,13.58508155]
[1754793980291,0.002,4256.0,4255.9,14.85258162]
[1754793981332,0.002,4256.0,4255.9,15.40258162]
[1754793981978,1e-08,4256.6,4256.5,5.89934805]
[1754793982210,1e-08,4256.6,4256.5,17.91575034]
[1754793982583,1e-08,4256.6,4256.5,5.46694805]
[1754793982782,0.94090001,4256.6,4256.5,10.02958606]
[1754793982980,0.94090001,4256.6,4256.5,9.24794805]
[1754793984816,0.43800001,4256.6,4256.5,9.24794805]
[1754793985918,0.94090001,4256.6,4256.5,9.24794805]
[1754793986290,0.94090001,4256.6,4256.5,6.8986]
[1754793986491,0.94090001,4256.6,4256.3,3.779]
[1754793986686,0.9409,4256.5,4254.9,5.64]
[1754793986890,0.33300857,4256.6,4254.9,5.64]
[1754793986891,0.9409,4256.4,4255.0,3.779]
[1754793987102,0.9409,4256.3,4255.0,3.779]
[1754793987298,1e-08,4256.6,4255.6,2.34984425]
[1754793987299,0.9409,4256.2,4255.6,2.34984425]
[1754793987527,0.9409,4256.1,4255.7,3.779]
[1754793987711,0.9409,4256.0,4255.7,3.779]
[1754793987919,0.1176,4256.2,4255.8,3.778]
[1754793988105,0.1176,4256.2,4254.9,5.64]
[1754793988106,0.9409,4255.9,4254.9,5.64]
[1754793988433,0.9409,4255.8,4255.4,2.46755416]
[1754793988633,0.1176,4256.2,4255.5,3.778]
[1754793988936,0.9409,4256.1,4255.7,2.34978969]
[1754793989225,0.9409,4256.0,4255.8,3.778]
[1754793989406,0.1176,4256.2,4255.9,3.778]
[1754793989616,0.1176,4256.2,4256.1,2.34956885]
[1754793989816,0.1176,4256.2,4256.1,6.12756885]
[1754793990121,1e-08,4256.6,4256.2,2.34949983]
[1754793990122,0.438,4256.5,4256.2,2.34949983]
[1754793990338,1e-08,4256.6,4256.3,3.778]
[1754793990620,0.9409,4256.4,4256.3,3.778]
[1754793990819,0.9409,4256.4,4256.3,6.12745844]
[1754793991736,0.438,4256.4,4256.3,6.98692608]
[1754793992018,1e-08,4256.6,4256.5,2.34934805]
[1754793992219,1e-08,4256.6,4256.5,6.12634805]
[1754793993339,1e-08,4256.6,4256.5,3.777]
[1754793993507,0.94090001,4256.6,4256.2,0.1176]
[1754793993698,0.9409,4256.5,4256.3,3.776]
[1754793993893,0.11760001,4256.6,4256.3,3.776]
[1754793994128,0.9409,4256.4,4256.3,3.776]
[1754793996672,0.11760001,4256.6,4256.3,3.776]
[1754793996831,0.11760001,4256.6,4256.5,2.34934805]
[1754793997026,0.11760001,4256.6,4256.5,6.12434805]
[1754793997335,1e-08,4256.6,4256.5,6.12434805]
[1754793998929,0.94090001,4256.6,4256.5,6.12434805]
[1754793999325,0.94090001,4256.6,4256.5,3.775]
[1754793999835,0.94090001,4256.6,4256.5,6.12434805]
[1754794000135,1e-08,4256.6,4256.5,6.12434805]
[1754794000336,1e-08,4256.6,4256.5,7.04591871]
[1754794001350,0.43800001,4256.6,4256.5,6.12434805]
[1754794001532,0.94090001,4256.6,4256.5,6.12434805]
[1754794002164,0.94090001,4256.6,4256.5,2.34934805]
[1754794002472,0.94090001,4256.6,4256.5,3.773]
[1754794002648,1.05850001,4256.6,4256.5,3.773]
[1754794003067,1.05850001,4256.6,4256.5,6.12234805]
[1754794003439,1.05850001,4256.6,4256.1,0.1176]
[1754794003760,0.9409,4256.5,4256.2,3.773]
[1754794003960,0.11760001,4256.6,4256.3,3.772]
[1754794004162,0.9409,4256.4,4256.3,3.772]
[1754794004865,0.9409,4256.4,4256.3,3.773]
[1754794008037,0.9409,4256.4,4256.3,3.772]
[1754794008266,0.11760001,4256.6,4256.4,2.34940325]
[1754794008467,0.11760001,4256.6,4256.5,6.11934805]
[1754794008666,1e-08,4256.6,4256.5,6.11934805]
[1754794008975,1e-08,4256.6,4256.5,6.73138286]
[1754794009389,0.90630001,4256.6,4256.5,6.73138286]
[1754794009553,1e-08,4256.6,4256.5,6.11934805]
[1754794010671,1e-08,4256.6,4256.5,9.11934805]
[1754794010871,1e-08,4256.6,4256.5,9.37234805]
[1754794011069,1e-08,4256.6,4256.5,9.48994805]
[1754794011270,1e-08,4256.6,4256.5,10.67398807]
[1754794011956,1e-08,4256.6,4256.5,10.42098807]
[1754794013088,1e-08,4256.6,4256.5,11.22398807]
[1754794013983,1e-08,4256.6,4256.5,10.97098807]
[1754794014389,1e-08,4256.6,4256.5,10.96898807]
[1754794014896,1e-08,4256.6,4256.5,11.04518807]
[1754794015093,1e-08,4256.6,4256.5,10.96898807]
[1754794015393,1e-08,4256.6,4256.5,10.96798807]
[1754794021716,1e-08,4256.6,4256.5,11.14478807]
[1754794021910,1e-08,4256.6,4256.5,11.22098807]
[1754794022384,1e-08,4257.1,4256.9,0.55]
[1754794022579,1e-08,4257.1,4257.0,9.95299036]
[1754794022785,1e-08,4257.1,4257.0,10.07059036]
[1754794023108,0.90630001,4257.1,4257.0,9.52059036]
[1754794023712,0.90630001,4257.1,4257.0,9.51959036]
[1754794023881,0.43730001,4257.1,4257.0,9.51959036]
[1754794024077,1e-08,4257.1,4257.0,9.51959036]
[1754794024503,0.90630001,4257.1,4257.0,9.51959036]
[1754794024922,0.90630001,4257.1,4257.0,3.8806]
[1754794025240,0.90630001,4257.1,4257.0,3.763]
[1754794025426,0.90630001,4257.1,4257.0,6.11207211]
[1754794025934,1e-08,4257.1,4257.0,6.22967211]
[1754794026135,1e-08,4257.1,4257.0,9.22967211]
[1754794026304,1e-08,4257.1,4257.0,10.38755516]
[1754794027105,0.43730001,4257.1,4257.0,10.38755516]
[1754794028226,0.90630001,4257.1,4257.0,10.38755516]
[1754794030248,1e-08,4257.1,4257.0,10.38755516]
[1754794030541,0.43730001,4257.1,4257.0,6.62455516]
[1754794030750,0.90630001,4257.1,4257.0,3.8776]
[1754794030903,0.90630001,4257.1,4257.0,3.76]
[1754794031827,0.90630001,4257.1,4257.0,6.10907211]
[1754794032051,1e-08,4257.1,4257.0,6.10907211]
[1754794032259,1e-08,4257.1,4257.0,6.22667211]
[1754794032471,1e-08,4257.1,4257.0,7.08425595]
[1754794033333,1e-08,4257.1,4257.0,10.08425595]
[1754794033534,1e-08,4257.1,4257.0,10.87575595]
[1754794033725,1e-08,4257.1,4257.0,10.63425595]
[1754794033930,1e-08,4257.1,4257.0,10.87575595]
[1754794034456,0.002,4257.3,4257.0,10.87575595]
[1754794034457,1e-08,4257.3,4257.2,5.89896175]
[1754794034631,1e-08,4257.3,4257.2,10.92799511]
[1754794034830,1e-08,4257.5,4257.4,2.89885141]
[1754794035053,1e-08,4257.5,4257.4,6.65785141]
[1754794035256,1e-08,4257.5,4257.4,9.65785141]
[1754794035947,1e-08,4257.6,4257.5,5.89879624]
[1754794036261,1e-08,4257.6,4257.5,6.75638008]
[1754794037657,1e-08,4257.9,4257.8,5.89863074]
[1754794037960,1e-08,4257.9,4257.8,9.77323074]
[1754794038633,1e-08,4257.9,4257.8,9.22323074]
[1754794038838,0.92980001,4257.9,4257.8,10.4661838]
[1754794039141,1e-08,4257.9,4257.8,10.4661838]
[1754794043212,0.46560001,4257.9,4257.8,10.4661838]
[1754794043413,1e-08,4257.9,4257.8,10.4661838]
[1754794043987,1e-08,4257.9,4257.8,11.0161838]
[1754794044184,1e-08,4258.0,4257.9,5.89857558]
[1754794044389,1e-08,4258.0,4257.9,16.8041878]
[1754794045214,0.46560001,4258.0,4257.9,9.98723972]
[1754794045513,0.92980001,4258.0,4257.9,9.98723972]
[1754794047614,0.46560001,4258.0,4257.9,9.98723972]
[1754794048121,1e-08,4258.0,4257.9,9.98723972]
[1754794048919,1e-08,4258.0,4257.9,20.5581878]
[1754794049998,1e-08,4258.0,4257.9,20.5561878]
[1754794052126,1e-08,4258.0,4257.9,6.78323972]
[1754794052302,0.92980001,4258.0,4257.9,10.53423972]
[1754794052705,0.92980001,4258.0,4257.9,6.78323972]
[1754794053235,0.92980001,4258.0,4257.9,10.53423972]
[1754794054117,0.92980001,4258.0,4257.9,10.53323972]
[1754794055397,0.92980001,4258.0,4257.9,6.23323972]
[1754794055633,0.92980001,4258.0,4257.9,9.98323972]
[1754794056507,0.92980001,4258.0,4257.9,3.23323972]
[1754794056707,0.92980001,4258.0,4257.9,6.09757558]
[1754794056913,0.92980001,4258.0,4257.9,9.09757558]
[1754794058205,0.92980001,4258.0,4257.8,0.1176]
[1754794058521,0.92980001,4258.0,4257.3,0.1186]
[1754794058522,0.9298,4257.9,4257.3,0.1186]
[1754794058722,0.9298,4257.9,4257.4,3.748]
[1754794059037,0.9298,4257.8,4257.5,2.34878809]
[1754794059212,0.9298,4257.7,4257.6,3.748]
[1754794060510,0.9298,4257.7,4257.6,6.09674107]
[1754794061217,0.9298,4257.7,4257.6,3.748]
[1754794064457,0.9298,4257.7,4257.6,3.747]
[1754794064738,0.9298,4257.7,4257.3,0.001]
[1754794064953,0.1176,4257.4,4257.3,0.001]
[1754794065130,1.0474,4257.4,4257.3,0.001]
[1754794067346,1.0474,4257.4,4257.3,2.34990658]
[1754794067645,0.5832,4257.4,4257.3,2.34990658]
[1754794067860,0.5832,4257.4,4257.3,0.001]
[1754794067861,0.9268,4257.4,4257.3,0.001]
[1754794068148,0.9268,4257.4,4257.3,3.747]
[1754794069212,0.9268,4257.4,4257.3,0.001]
[1754794069745,1.26611348,4257.4,4257.3,0.001]
[1754794069926,0.9268,4257.4,4257.3,0.001]
[1754794070649,0.95616064,4257.4,4257.3,0.001]
[1754794071146,0.9268,4257.4,4257.3,0.001]
[1754794071349,3.27565141,4257.4,4257.3,0.001]
[1754794071745,0.9268,4257.4,4257.3,0.001]
[1754794071947,1.50099072,4257.4,4257.3,0.001]
[1754794072454,1.0444,4257.4,4257.3,0.001]
[1754794073319,3.39325141,4257.4,4257.3,0.001]
[1754794074662,3.42261205,4257.4,4257.3,0.001]
[1754794074844,3.39325141,4257.4,4257.3,0.001]
[1754794077850,3.42261205,4257.4,4257.3,0.001]
[1754794078042,5.37404972,4257.4,4257.3,0.001]
[1754794078333,5.34468908,4257.4,4257.3,0.001]
[1754794078922,5.29468908,4257.4,4257.3,0.001]
[1754794079958,7.08525141,4257.4,4257.3,0.001]
[1754794080335,10.08525141,4257.4,4257.3,0.001]
[1754794081962,7.08425141,4257.4,4257.3,0.001]
[1754794082665,0.1176,4257.4,4257.3,0.001]
[1754794082852,0.4508,4257.8,4257.3,2.34990658]
[1754794083054,1e-08,4258.0,4257.3,2.34990658]
[1754794083055,0.1176,4257.4,4257.3,2.34990658]
[1754794083260,0.1176,4257.9,4257.5,2.34879624]
[1754794083447,0.1176,4257.9,4257.4,2.3488289]
[1754794083644,0.1176,4257.9,4257.5,5.34879624]
[1754794083967,0.1176,4257.9,4257.6,0.86326962]
[1754794084131,0.1176,4257.9,4257.3,0.1186]
[1754794084132,0.912,4257.8,4257.3,0.1186]
[1754794084337,0.912,4257.7,4257.3,0.1186]
[1754794084535,1e-08,4258.0,4257.3,0.001]
[1754794084771,0.45080001,4258.0,4257.3,0.001]
[1754794085238,2.34863445,4257.8,4257.3,0.001]
[1754794085439,0.4612,4257.9,4257.3,0.001]
[1754794085660,0.912,4257.9,4257.3,0.001]
[1754794085857,1e-08,4258.0,4257.5,2.34877262]
[1754794086474,1e-08,4258.0,4257.5,2.34879624]
[1754794086654,1e-08,4258.0,4257.6,0.23497962]
[1754794087354,1e-08,4258.0,4257.7,2.34868591]
[1754794088238,1e-08,4258.0,4257.9,2.34857558]
[1754794088561,1e-08,4258.0,4257.7,2.34865376]
[1754794088761,1e-08,4258.0,4257.4,3.739]
[1754794088964,1e-08,4258.0,4257.5,2.34879624]
[1754794089161,0.4508,4257.9,4257.3,0.001]
[1754794089466,0.4612,4257.8,4257.3,0.001]
[1754794090175,0.912,4257.7,4257.3,0.001]
[1754794090350,0.4612,4257.7,4257.3,0.001]
[1754794090555,0.4508,4257.6,4257.3,0.001]
[1754794090947,0.912,4257.6,4257.3,0.001]
[1754794091350,0.4508,4257.6,4257.3,0.001]
[1754794091572,0.91200001,4258.0,4257.3,0.23599441]
[1754794091794,0.45080001,4258.0,4257.6,2.3487388]
[1754794091978,0.45080001,4258.0,4257.4,2.34879634]
[1754794091979,1e-08,4258.0,4257.4,2.34879634]
[1754794092284,1e-08,4258.0,4257.8,2.34862506]
[1754794092583,1e-08,4258.0,4257.3,0.001]
[1754794092791,1e-08,4258.0,4257.9,2.34857558]
[1754794093469,1e-08,4258.0,4257.7,2.3486372]
[1754794093670,1e-08,4258.0,4257.5,6.21195347]
[1754794093671,1e-08,4258.0,4257.8,0.62118662]
[1754794094453,0.11760001,4258.0,4257.8,0.62118662]
[1754794094954,0.11760001,4258.0,4257.5,3.737]
[1754794095157,0.912,4257.9,4257.4,0.1176]
[1754794095369,0.912,4257.8,4257.3,3.737]
[1754794095569,1.0296,4257.7,4257.3,3.737]
[1754794095778,0.912,4257.6,4257.3,0.001]
[1754794095971,0.912,4257.6,4257.3,0.68636]
[1754794096182,0.1176,4257.7,4257.3,3.03526502]
[1754794096691,0.1176,4257.7,4257.3,3.03526124]
[1754794096896,0.1176,4257.7,4257.3,0.68636]
[1754794097199,0.5684,4257.7,4257.3,0.68636]
[1754794097485,0.5684,4257.7,4257.3,3.03526469]
[1754794097687,0.1176,4257.7,4257.3,3.03526469]
[1754794098382,0.1176,4257.7,4257.4,0.98878647]
[1754794098893,0.9418,4257.6,4257.3,0.001]
[1754794099320,2.46645141,4257.4,4257.3,0.001]
[1754794099791,3.40825141,4257.4,4257.3,0.001]
[1754794100370,1.0594,4257.4,4257.3,0.001]
[1754794100703,0.562,4257.4,4257.3,0.001]
[1754794101264,1.0594,4257.4,4257.3,0.001]
[1754794101761,3.40825141,4257.4,4257.3,0.001]
[1754794102384,4.01624276,4257.4,4257.3,0.001]
[1754794102891,1.63803071,4257.4,4257.3,0.001]
[1754794103666,1.0594,4257.4,4257.3,0.001]
[1754794104112,0.1176,4257.4,4257.3,0.001]
[1754794105077,0.1176,4257.4,4257.3,2.34990658]
[1754794105276,0.1176,4257.4,4257.3,0.001]
[1754794106171,1.0594,4257.4,4257.3,0.001]
[1754794106815,3.40825141,4257.4,4257.3,0.001]
[1754794106985,3.75201241,4257.4,4257.3,0.001]
[1754794107912,2.81021241,4257.4,4257.3,0.001]
[1754794108073,3.75201241,4257.4,4257.3,0.001]
[1754794108866,3.78137305,4257.4,4257.3,0.001]
[1754794109193,3.75201241,4257.4,4257.3,0.001]
[1754794109396,3.78137305,4257.4,4257.3,0.001]
[1754794109590,3.75201241,4257.4,4257.3,0.001]
[1754794110403,1.403161,4257.4,4257.3,0.001]
[1754794110704,3.75201241,4257.4,4257.3,0.001]
[1754794111893,3.40825141,4257.4,4257.3,0.001]
[1754794112509,3.43761205,4257.4,4257.3,0.001]
[1754794112804,2.91085141,4257.4,4257.3,0.001]
[1754794114490,0.562,4257.4,4257.3,0.001]
[1754794115091,2.91085141,4257.4,4257.3,0.001]
[1754794115306,0.1176,4257.4,4257.3,0.001]
[1754794115496,0.562,4257.4,4257.3,0.001]
[1754794116604,0.1176,4257.4,4257.3,0.001]
[1754794118006,1.0594,4257.4,4257.3,0.001]
[1754794118306,7.61419141,4257.4,4257.3,0.001]
[1754794118875,5.26534,4257.4,4257.3,0.001]
[1754794119294,7.61419141,4257.4,4257.3,0.001]
[1754794120375,6.67239141,4257.4,4257.3,0.001]
[1754794120574,7.61419141,4257.4,4257.3,0.001]
[1754794121489,0.1176,4257.4,4257.3,0.001]
[1754794122409,1.0594,4257.4,4257.3,0.001]
[1754794122599,3.43761205,4257.4,4257.3,0.001]
[1754794122800,3.40825141,4257.4,4257.3,0.001]
[1754794124411,0.1176,4257.4,4257.3,0.001]
[1754794124612,1.0594,4257.4,4257.3,0.001]
[1754794126318,0.1176,4257.4,4257.3,0.001]
[1754794126503,2.91085141,4257.4,4257.3,0.001]
[1754794126821,3.40825141,4257.4,4257.3,0.001]
[1754794127111,1.0594,4257.4,4257.3,0.001]
[1754794128119,0.1176,4257.4,4257.3,0.001]
[1754794130331,0.5718,4257.4,4257.3,0.001]
[1754794130625,3.84836734,4257.4,4257.3,0.001]
[1754794131589,1.49951593,4257.4,4257.3,0.001]
[1754794132131,0.1176,4257.4,4257.3,0.001]
[1754794132419,15.24557388,4257.4,4257.3,1e-08]
[1754794132593,15.79557388,4257.4,4257.3,1e-08]
[1754794132792,18.79557388,4257.4,4257.3,1e-08]
[1754794133000,21.40665852,4257.4,4257.3,1e-08]
[1754794133210,2.34907211,4257.0,4256.9,0.001]
[1754794133524,6.21803551,4257.0,4256.9,0.001]
[1754794133714,7.13787211,4257.0,4256.9,0.001]
[1754794134624,17.13787211,4257.0,4256.9,0.001]
[1754794134932,16.24248607,4257.0,4256.9,0.001]
[1754794135224,16.18867211,4257.0,4256.9,0.001]
[1754794135435,10.1176,4257.0,4256.9,0.001]
[1754794135603,3.8386,4257.0,4256.9,0.001]
[1754794136740,6.18767211,4257.0,4256.9,0.001]
[1754794136903,7.13687211,4257.0,4256.9,0.001]
[1754794137103,8.08545598,4257.0,4256.9,0.001]
[1754794137546,7.59045598,4257.0,4256.9,0.001]
[1754794138010,4.78718387,4257.0,4256.9,0.001]
[1754794138540,7.13625598,4257.0,4256.9,0.001]
[1754794138840,4.78718387,4257.0,4256.9,0.001]
[1754794139211,7.13625598,4257.0,4256.9,0.001]
[1754794139409,8.08545598,4257.0,4256.9,0.001]
[1754794139605,4.78718387,4257.0,4256.9,0.001]
[1754794140439,0.1176,4257.0,4256.9,0.001]
[1754794141005,0.1176,4257.0,4256.9,2.35012729]
[1754794145101,0.1176,4257.0,4256.9,2.47632729]
[1754794145618,0.1176,4257.4,4256.9,0.001]
[1754794145804,0.1176,4257.4,4256.9,2.35007233]
[1754794146019,0.1176,4257.4,4257.0,2.34905968]
[1754794146318,0.97856133,4257.3,4256.9,0.001]
[1754794146625,0.1176,4257.0,4256.9,0.001]
[1754794147639,0.5718,4257.0,4256.9,0.001]
[1754794147842,1.0668,4257.0,4256.9,0.001]
[1754794148420,1.4113092,4257.0,4256.9,0.001]
[1754794148713,0.1176,4257.0,4256.9,0.001]
[1754794149512,1.0668,4257.0,4256.9,0.001]
[1754794150541,3.41587211,4257.0,4256.9,0.001]
[1754794152954,7.16123551,4257.0,4256.9,0.001]
[1754794153160,9.08289258,4257.0,4256.9,0.001]
[1754794153654,19.08289258,4257.0,4256.9,0.001]
[1754794155812,9.08289258,4257.0,4256.9,0.001]
[1754794156713,19.08289258,4257.0,4256.9,0.001]
[1754794157644,22.63289258,4257.0,4256.9,0.001]
[1754794157850,23.1286942,4257.0,4256.9,0.001]
[1754794158062,22.63289258,4257.0,4256.9,0.001]
[1754794158362,23.12869619,4257.0,4256.9,1e-08]
[1754794158721,5.89912729,4256.9,4256.8,1e-08]
[1754794158921,9.62457158,4256.9,4256.8,1e-08]
[1754794160715,19.62457158,4256.9,4256.8,1e-08]
[1754794162547,29.87076797,4256.9,4256.8,1e-08]
[1754794163121,29.98629471,4256.9,4256.8,1e-08]
[1754794163430,2.89929286,4256.6,4256.5,1e-08]
[1754794163742,24.78240156,4256.6,4256.5,1e-08]
[1754794163942,24.8706354,4256.6,4256.5,1e-08]
[1754794164257,25.7832354,4256.6,4256.5,1e-08]
[1754794164820,35.7832354,4256.6,4256.5,1e-08]
[1754794165029,36.72768681,4256.6,4256.5,1e-08]
[1754794165555,36.72668681,4256.6,4256.5,1e-08]
[1754794167956,29.69668681,4256.6,4256.5,1e-08]
[1754794169163,5.89934805,4256.5,4256.3,0.001]
[1754794169316,9.24038801,4256.4,4256.3,0.001]
[1754794169519,10.12362047,4256.4,4256.3,0.001]
[1754794169760,20.12362047,4256.4,4256.3,0.001]
[1754794170568,22.47302372,4256.4,4256.3,0.001]